[Event "*** Titled Tuesday Blitz"]
[Site "Chess.com"]
[Date "2020.11.24"]
[Round "5"]
[White "Trovita84"]
[Black "Skat2704"]
[Result "1-0"]
[WhiteElo "2020"]
[BlackElo "2368"]
[TimeControl "180+1"]
[EndTime "11:12:36 PST"]
[Termination "Trovita84 won by checkmate"]

1. e4 {[%clk 0:03:00.5]} 1... c6 {[%clk 0:02:59.7]} 2. d4 {[%clk 0:02:58]} 2...
d5 {[%clk 0:02:59.4]} 3. e5 {[%clk 0:02:58.7]} 3... Bf5 {[%clk 0:02:58.8]} 4. h4
{[%clk 0:02:59.2]} 4... h5 {[%clk 0:02:58]} 5. Bg5 {[%clk 0:02:59.2]} 5... Qb6
{[%clk 0:02:57]} 6. Bd3 {[%clk 0:02:59.2]} 6... Bxd3 {[%clk 0:02:56.2]} 7. Qxd3
{[%clk 0:03:00.1]} 7... e6 {[%clk 0:02:55.8]} 8. Nf3 {[%clk 0:02:58.8]} 8... Be7
{[%clk 0:02:52.6]} 9. b3 {[%clk 0:02:58]} 9... Nd7 {[%clk 0:02:48.9]} 10. Nbd2
{[%clk 0:02:57.5]} 10... O-O-O {[%clk 0:02:38.1]} 11. O-O-O {[%clk 0:02:56]}
11... Bxg5 {[%clk 0:02:33.6]} 12. Nxg5 {[%clk 0:02:55.9]} 12... Nh6 {[%clk
0:02:33.3]} 13. Kb2 {[%clk 0:02:53.8]} 13... Kb8 {[%clk 0:02:28.2]} 14. a4
{[%clk 0:02:42.8]} 14... c5 {[%clk 0:02:27.8]} 15. dxc5 {[%clk 0:02:24.7]} 15...
Nxc5 {[%clk 0:02:20.3]} 16. Qd4 {[%clk 0:02:21]} 16... Nf5 {[%clk 0:02:15.6]}
17. Qf4 {[%clk 0:02:11]} 17... Rhf8 {[%clk 0:01:57.4]} 18. Nh7 {[%clk
0:02:05.7]} 18... Rfe8 {[%clk 0:01:52.7]} 19. Ng5 {[%clk 0:02:00.5]} 19... d4
{[%clk 0:01:48]} 20. Nc4 {[%clk 0:01:58]} 20... Qb4 {[%clk 0:01:44.4]} 21. Ra1
{[%clk 0:01:39.3]} 21... Qc3+ {[%clk 0:01:39.5]} 22. Kb1 {[%clk 0:01:32.2]}
22... d3 {[%clk 0:01:34.3]} 23. Qd2 {[%clk 0:01:20.8]} 23... dxc2+ {[%clk
0:01:25.4]} 24. Qxc2 {[%clk 0:01:19.9]} 24... Qxc2+ {[%clk 0:01:25.1]} 25. Kxc2
{[%clk 0:01:20.3]} 25... Nd4+ {[%clk 0:01:25.3]} 26. Kb2 {[%clk 0:01:19.6]}
26... Nd3+ {[%clk 0:01:23.1]} 27. Kc3 {[%clk 0:01:17.9]} 27... Ne2+ {[%clk
0:01:19]} 28. Kc2 {[%clk 0:01:18.2]} 28... Nxf2 {[%clk 0:01:17.2]} 29. Rhf1
{[%clk 0:01:16.6]} 29... Nd4+ {[%clk 0:01:14]} 30. Kc3 {[%clk 0:01:16.1]} 30...
Ng4 {[%clk 0:01:10.9]} 31. Rxf7 {[%clk 0:01:13.3]} 31... Ne2+ {[%clk 0:01:04]}
32. Kb4 {[%clk 0:01:12.9]} 32... Rd5 {[%clk 0:00:55.1]} 33. Nd6 {[%clk
0:01:08.6]} 33... a5+ {[%clk 0:00:45.4]} 34. Ka3 {[%clk 0:01:06.4]} 34... Rd8
{[%clk 0:00:35.3]} 35. Rxb7+ {[%clk 0:01:02.8]} 35... Ka8 {[%clk 0:00:35.4]} 36.
Rxg7 {[%clk 0:00:53.7]} 36... Ne3 {[%clk 0:00:31.8]} 37. Nge4 {[%clk 0:00:51.9]}
37... Nc2+ {[%clk 0:00:28.5]} 38. Kb2 {[%clk 0:00:49.5]} 38... Nxa1 {[%clk
0:00:28.5]} 39. Kxa1 {[%clk 0:00:50.4]} 39... Rf8 {[%clk 0:00:26]} 40. Kb2
{[%clk 0:00:45.5]} 40... Nd4 {[%clk 0:00:23.4]} 41. Kc3 {[%clk 0:00:44.8]} 41...
Nc6 {[%clk 0:00:12.5]} 42. Rg5 {[%clk 0:00:30.6]} 42... Rxe5 {[%clk 0:00:11.7]}
43. Rg7 {[%clk 0:00:27]} 43... Rd5 {[%clk 0:00:11]} 44. Nc4 {[%clk 0:00:26.3]}
44... Nb4 {[%clk 0:00:10.8]} 45. Nb6+ {[%clk 0:00:25.8]} 45... Kb8 {[%clk
0:00:09.4]} 46. Nxd5 {[%clk 0:00:24.8]} 46... exd5 {[%clk 0:00:09.7]} 47. Nc5
{[%clk 0:00:24.9]} 47... Rc8 {[%clk 0:00:09.7]} 48. Kd4 {[%clk 0:00:24.3]} 48...
Rf8 {[%clk 0:00:09]} 49. Rb7+ {[%clk 0:00:24.1]} 49... Kc8 {[%clk 0:00:08.7]}
50. Rg7 {[%clk 0:00:23.6]} 50... Rf2 {[%clk 0:00:08.5]} 51. Rg5 {[%clk
0:00:20.1]} 51... Rd2+ {[%clk 0:00:08.2]} 52. Ke5 {[%clk 0:00:19.8]} 52... Rc2
{[%clk 0:00:08.3]} 53. Kd6 {[%clk 0:00:17.5]} 53... d4 {[%clk 0:00:08.1]} 54.
Rg8# {[%clk 0:00:17.4]} 1-0

[Event "*** Titled Tuesday Blitz"]
[Site "Chess.com"]
[Date "2020.11.24"]
[Round "5"]
[White "MokshanovAlexey"]
[Black "Kopytkin"]
[Result "1-0"]
[WhiteElo "2616"]
[BlackElo "2432"]
[TimeControl "180+1"]
[EndTime "11:12:37 PST"]
[Termination "MokshanovAlexey won on time"]

1. e4 {[%clk 0:03:00.9]} 1... Nf6 {[%clk 0:02:59.5]} 2. e5 {[%clk 0:03:00.1]}
2... Nd5 {[%clk 0:02:57]} 3. c4 {[%clk 0:02:58]} 3... Nb6 {[%clk 0:02:56.6]} 4.
d4 {[%clk 0:02:58.3]} 4... d6 {[%clk 0:02:55.6]} 5. exd6 {[%clk 0:02:58.6]} 5...
cxd6 {[%clk 0:02:55.5]} 6. Bd3 {[%clk 0:02:58.6]} 6... g6 {[%clk 0:02:55.7]} 7.
Ne2 {[%clk 0:02:58.6]} 7... Bg7 {[%clk 0:02:56]} 8. O-O {[%clk 0:02:58.9]} 8...
O-O {[%clk 0:02:56.2]} 9. Nbc3 {[%clk 0:02:58.7]} 9... Nc6 {[%clk 0:02:56.5]}
10. d5 {[%clk 0:02:58.8]} 10... Ne5 {[%clk 0:02:56]} 11. b3 {[%clk 0:02:59.1]}
11... e6 {[%clk 0:02:35.1]} 12. dxe6 {[%clk 0:02:57.5]} 12... Bxe6 {[%clk
0:02:34.2]} 13. Bb2 {[%clk 0:02:55.1]} 13... d5 {[%clk 0:02:28]} 14. c5 {[%clk
0:02:44.9]} 14... Nbd7 {[%clk 0:02:20.6]} 15. b4 {[%clk 0:02:26.7]} 15... Nxd3
{[%clk 0:02:06.2]} 16. Qxd3 {[%clk 0:02:25.2]} 16... Ne5 {[%clk 0:02:06.7]} 17.
Qb1 {[%clk 0:01:48.7]} 17... Qh4 {[%clk 0:02:02.2]} 18. Nb5 {[%clk 0:01:32.3]}
18... Qxb4 {[%clk 0:00:54.3]} 19. Bxe5 {[%clk 0:00:53.6]} 19... Qxb1 {[%clk
0:00:52.7]} 20. Raxb1 {[%clk 0:00:53.6]} 20... Bxe5 {[%clk 0:00:53.1]} 21. f4
{[%clk 0:00:37.4]} 21... Bb8 {[%clk 0:00:46.8]} 22. Ned4 {[%clk 0:00:29.8]}
22... a6 {[%clk 0:00:46.8]} 23. Nd6 {[%clk 0:00:25.6]} 23... b5 {[%clk
0:00:38.3]} 24. Rfe1 {[%clk 0:00:22.5]} 24... Bxd6 {[%clk 0:00:36.8]} 25. cxd6
{[%clk 0:00:22.4]} 25... Rfe8 {[%clk 0:00:34.4]} 26. Rbc1 {[%clk 0:00:17.9]}
26... Rac8 {[%clk 0:00:25.2]} 27. Rxc8 {[%clk 0:00:13.6]} 27... Rxc8 {[%clk
0:00:24.6]} 28. Rxe6 {[%clk 0:00:12.9]} 28... fxe6 {[%clk 0:00:23.9]} 29. Nxe6
{[%clk 0:00:13.7]} 29... Kf7 {[%clk 0:00:07]} 30. d7 {[%clk 0:00:14.1]} 30...
Rb8 {[%clk 0:00:06.2]} 31. d8=Q {[%clk 0:00:14]} 31... Rxd8 {[%clk 0:00:06.3]}
32. Nxd8+ {[%clk 0:00:14.9]} 32... Ke7 {[%clk 0:00:06.6]} 33. Nb7 {[%clk
0:00:13.5]} 33... b4 {[%clk 0:00:03.9]} 34. Kf2 {[%clk 0:00:12.6]} 34... Kd7
{[%clk 0:00:01.7]} 35. Ke3 {[%clk 0:00:12]} 35... Kc6 {[%clk 0:00:01.3]} 36.
Na5+ {[%clk 0:00:12.2]} 36... Kb5 {[%clk 0:00:01.1]} 37. Nb3 {[%clk 0:00:11.9]}
37... Kc4 {[%clk 0:00:01.7]} 38. g4 {[%clk 0:00:12.2]} 38... Kc3 {[%clk
0:00:01.5]} 39. f5 {[%clk 0:00:12.5]} 39... a5 {[%clk 0:00:01.8]} 40. f6 {[%clk
0:00:12.6]} 40... a4 {[%clk 0:00:01.8]} 41. Nd4 {[%clk 0:00:12.9]} 41... b3
{[%clk 0:00:01.7]} 42. Nxb3 {[%clk 0:00:13]} 42... axb3 {[%clk 0:00:01.8]} 43.
axb3 {[%clk 0:00:13.4]} 43... d4+ {[%clk 0:00:02.3]} 44. Kf2 {[%clk 0:00:13.7]}
44... d3 {[%clk 0:00:02.5]} 45. f7 {[%clk 0:00:14.3]} 45... d2 {[%clk
0:00:03.1]} 46. f8=Q {[%clk 0:00:14.9]} 46... d1=Q {[%clk 0:00:03.5]} 47. Qf3+
{[%clk 0:00:15.2]} 47... Qxf3+ {[%clk 0:00:02.6]} 48. Kxf3 {[%clk 0:00:16.1]}
48... Kxb3 {[%clk 0:00:03]} 49. Kf4 {[%clk 0:00:17]} 49... Kc4 {[%clk
0:00:03.4]} 50. Kg5 {[%clk 0:00:17.6]} 50... Kd5 {[%clk 0:00:03.4]} 51. Kh6
{[%clk 0:00:18.1]} 51... Ke6 {[%clk 0:00:03.9]} 52. Kxh7 {[%clk 0:00:18.7]}
52... Kf6 {[%clk 0:00:04]} 53. Kh6 {[%clk 0:00:19.2]} 53... g5 {[%clk
0:00:02.1]} 54. Kh5 {[%clk 0:00:19.3]} 1-0

[Event "*** Titled Tuesday Blitz"]
[Site "Chess.com"]
[Date "2020.11.24"]
[Round "5"]
[White "Jumbo"]
[Black "sara_khm"]
[Result "1-0"]
[WhiteElo "2845"]
[BlackElo "2575"]
[TimeControl "180+1"]
[EndTime "11:12:39 PST"]
[Termination "Jumbo won by resignation"]

1. d4 {[%clk 0:02:53.7]} 1... Nf6 {[%clk 0:02:58.9]} 2. Bf4 {[%clk 0:02:53.9]}
2... d5 {[%clk 0:02:57.2]} 3. e3 {[%clk 0:02:52.6]} 3... c5 {[%clk 0:02:57.7]}
4. c3 {[%clk 0:02:53.1]} 4... Nc6 {[%clk 0:02:56.8]} 5. Nd2 {[%clk 0:02:53.7]}
5... cxd4 {[%clk 0:02:53.8]} 6. exd4 {[%clk 0:02:54.6]} 6... Bf5 {[%clk
0:02:53.4]} 7. Qb3 {[%clk 0:02:49.5]} 7... Qc8 {[%clk 0:02:50.1]} 8. Ngf3 {[%clk
0:02:44.3]} 8... e6 {[%clk 0:02:50.2]} 9. a4 {[%clk 0:02:35.2]} 9... Be7 {[%clk
0:02:43.6]} 10. a5 {[%clk 0:02:34.4]} 10... O-O {[%clk 0:02:42.7]} 11. a6 {[%clk
0:02:28.3]} 11... b6 {[%clk 0:02:40.7]} 12. h3 {[%clk 0:02:27.7]} 12... Ne4
{[%clk 0:02:36.3]} 13. Be2 {[%clk 0:02:20.7]} 13... Bd6 {[%clk 0:02:12]} 14.
Bxd6 {[%clk 0:02:12.7]} 14... Nxd6 {[%clk 0:02:11.9]} 15. O-O {[%clk 0:02:12.6]}
15... Na5 {[%clk 0:02:11.6]} 16. Qb4 {[%clk 0:02:11.2]} 16... Ndc4 {[%clk
0:01:51.2]} 17. Nxc4 {[%clk 0:02:06.2]} 17... dxc4 {[%clk 0:01:51.4]} 18. Ne5
{[%clk 0:02:05.4]} 18... Qxa6 {[%clk 0:01:38.6]} 19. Nxc4 {[%clk 0:01:44.9]}
19... Rfc8 {[%clk 0:01:37.6]} 20. b3 {[%clk 0:01:45.3]} 20... Rc7 {[%clk
0:01:16.1]} 21. Rfe1 {[%clk 0:01:33.9]} 21... Qc8 {[%clk 0:01:15.5]} 22. Bf3
{[%clk 0:01:05.5]} 22... Rb8 {[%clk 0:01:15]} 23. Nd6 {[%clk 0:01:04.6]} 23...
Qf8 {[%clk 0:01:07.7]} 24. Re5 {[%clk 0:00:43.2]} 24... Nxb3 {[%clk 0:00:46]}
25. Ra3 {[%clk 0:00:33.9]} 25... Nd2 {[%clk 0:00:43.6]} 26. Nxf5 {[%clk
0:00:18.8]} 26... Qxb4 {[%clk 0:00:32.7]} 27. cxb4 {[%clk 0:00:19.7]} 27... Rc1+
{[%clk 0:00:23.9]} 28. Kh2 {[%clk 0:00:18.4]} 28... exf5 {[%clk 0:00:23.9]} 29.
Be2 {[%clk 0:00:11.8]} 29... Re1 {[%clk 0:00:18.7]} 30. Rxa7 {[%clk 0:00:10.3]}
30... f4 {[%clk 0:00:18.6]} 31. Ree7 {[%clk 0:00:08.6]} 31... Rf8 {[%clk
0:00:18.6]} 32. d5 {[%clk 0:00:05.4]} 32... Rb1 {[%clk 0:00:15.4]} 33. d6 {[%clk
0:00:05.3]} 33... Rxb4 {[%clk 0:00:15.6]} 34. d7 {[%clk 0:00:05.6]} 34... Rd4
{[%clk 0:00:15.4]} 35. Re8 {[%clk 0:00:05.2]} 35... g6 {[%clk 0:00:15]} 36. Raa8
{[%clk 0:00:03.7]} 36... Rxd7 {[%clk 0:00:15]} 37. Rxf8+ {[%clk 0:00:04]} 37...
Kg7 {[%clk 0:00:15.9]} 38. Rfd8 {[%clk 0:00:04.2]} 38... Rxd8 {[%clk 0:00:13.3]}
39. Rxd8 {[%clk 0:00:05.1]} 39... Ne4 {[%clk 0:00:14]} 40. Kg1 {[%clk 0:00:04]}
40... Nc3 {[%clk 0:00:14.6]} 41. Bf3 {[%clk 0:00:03.7]} 41... b5 {[%clk
0:00:15]} 42. Rc8 {[%clk 0:00:03.6]} 42... b4 {[%clk 0:00:15.1]} 43. Rc4 {[%clk
0:00:04.1]} 43... Na2 {[%clk 0:00:13.3]} 44. Bd1 {[%clk 0:00:04.1]} 44... g5
{[%clk 0:00:12.6]} 45. Bb3 {[%clk 0:00:04.4]} 45... Nc3 {[%clk 0:00:12.9]} 46.
Rxb4 {[%clk 0:00:04.6]} 46... Ne2+ {[%clk 0:00:13.3]} 47. Kf1 {[%clk 0:00:04.7]}
47... Nc1 {[%clk 0:00:13.9]} 48. Bc4 {[%clk 0:00:04.2]} 48... f3 {[%clk
0:00:13.1]} 49. Rb1 {[%clk 0:00:04.2]} 49... fxg2+ {[%clk 0:00:10.7]} 50. Kxg2
{[%clk 0:00:05.1]} 1-0

[Event "*** Titled Tuesday Blitz"]
[Site "Chess.com"]
[Date "2020.11.24"]
[Round "5"]
[White "Guachiney"]
[Black "Vladislav_Chizhikov"]
[Result "1-0"]
[WhiteElo "2761"]
[BlackElo "2522"]
[TimeControl "180+1"]
[EndTime "11:12:45 PST"]
[Termination "Guachiney won by checkmate"]

1. e4 {[%clk 0:03:00.9]} 1... e6 {[%clk 0:02:59.9]} 2. d4 {[%clk 0:03:00.7]}
2... d5 {[%clk 0:03:00.2]} 3. Nc3 {[%clk 0:03:01.6]} 3... Bb4 {[%clk 0:02:58.4]}
4. e5 {[%clk 0:03:01.4]} 4... Ne7 {[%clk 0:02:57.5]} 5. a3 {[%clk 0:03:01.6]}
5... Bxc3+ {[%clk 0:02:57.5]} 6. bxc3 {[%clk 0:03:02.5]} 6... c5 {[%clk
0:02:57.9]} 7. h4 {[%clk 0:03:02.2]} 7... Qc7 {[%clk 0:02:58.1]} 8. h5 {[%clk
0:03:02.1]} 8... cxd4 {[%clk 0:02:44.8]} 9. cxd4 {[%clk 0:03:03]} 9... Qc3+
{[%clk 0:02:42.7]} 10. Bd2 {[%clk 0:03:03]} 10... Qxd4 {[%clk 0:02:41.4]} 11.
Nf3 {[%clk 0:03:03.3]} 11... Qa4 {[%clk 0:02:37.5]} 12. h6 {[%clk 0:03:01.7]}
12... gxh6 {[%clk 0:02:36.4]} 13. Bd3 {[%clk 0:02:51.7]} 13... Nbc6 {[%clk
0:02:33.9]} 14. Rxh6 {[%clk 0:02:43.3]} 14... Ng6 {[%clk 0:02:31.7]} 15. Kf1
{[%clk 0:02:27.2]} 15... Qg4 {[%clk 0:02:22]} 16. Bxg6 {[%clk 0:02:03.1]} 16...
fxg6 {[%clk 0:02:21.5]} 17. Rb1 {[%clk 0:01:59.8]} 17... a6 {[%clk 0:02:17.9]}
18. Rh4 {[%clk 0:01:54.3]} 18... Qf5 {[%clk 0:02:17.3]} 19. Rf4 {[%clk
0:01:53.3]} 19... Qh5 {[%clk 0:02:15]} 20. Kg1 {[%clk 0:01:48.5]} 20... b5
{[%clk 0:02:00]} 21. Qe2 {[%clk 0:01:35.5]} 21... Bd7 {[%clk 0:01:56.5]} 22. g3
{[%clk 0:01:23.6]} 22... h6 {[%clk 0:01:49.7]} 23. Kg2 {[%clk 0:01:23.2]} 23...
g5 {[%clk 0:01:48.6]} 24. Rh1 {[%clk 0:01:08.1]} 24... Qg6 {[%clk 0:01:37.3]}
25. Rf6 {[%clk 0:01:07.5]} 25... Qxc2 {[%clk 0:01:37]} 26. Nxg5 {[%clk
0:01:06.4]} 26... O-O-O {[%clk 0:01:24.6]} 27. Rc1 {[%clk 0:01:05.8]} 27... Qb2
{[%clk 0:01:03.8]} 28. Nxe6 {[%clk 0:01:04.5]} 28... Rde8 {[%clk 0:01:03.7]} 29.
Nf4 {[%clk 0:01:00.7]} 29... Rxe5 {[%clk 0:00:57.2]} 30. Rfxc6+ {[%clk
0:00:43.8]} 30... Bxc6 {[%clk 0:00:56.7]} 31. Qg4+ {[%clk 0:00:43.6]} 31... Kb7
{[%clk 0:00:44.3]} 32. Qg7+ {[%clk 0:00:43.3]} 32... Kb6 {[%clk 0:00:42.5]} 33.
Qxh8 {[%clk 0:00:20.5]} 33... Qxd2 {[%clk 0:00:41.1]} 34. Rxc6+ {[%clk
0:00:18.9]} 34... Kxc6 {[%clk 0:00:40.8]} 35. Qxe5 {[%clk 0:00:19.8]} 35... a5
{[%clk 0:00:37.4]} 36. Qe8+ {[%clk 0:00:17.6]} 36... Kc5 {[%clk 0:00:36.3]} 37.
Qc8+ {[%clk 0:00:17.6]} 37... Kd4 {[%clk 0:00:30.6]} 38. Qc6 {[%clk 0:00:17.6]}
38... Qa2 {[%clk 0:00:25]} 39. Qxb5 {[%clk 0:00:17.4]} 39... Qxa3 {[%clk
0:00:19.2]} 40. Qxd5+ {[%clk 0:00:17.6]} 40... Kc3 {[%clk 0:00:18.7]} 41. Qc6+
{[%clk 0:00:16.5]} 41... Kb2 {[%clk 0:00:18.2]} 42. Qxh6 {[%clk 0:00:17.4]}
42... a4 {[%clk 0:00:17.6]} 43. Qf6+ {[%clk 0:00:15.9]} 43... Qc3 {[%clk
0:00:16.2]} 44. Qb6+ {[%clk 0:00:14]} 44... Qb3 {[%clk 0:00:15.5]} 45. Qd4+
{[%clk 0:00:14]} 45... Kc2 {[%clk 0:00:13.5]} 46. Nd5 {[%clk 0:00:10]} 46... a3
{[%clk 0:00:12.6]} 47. Nb4+ {[%clk 0:00:09]} 47... Kb1 {[%clk 0:00:12.4]} 48. g4
{[%clk 0:00:06.4]} 48... Kc1 {[%clk 0:00:10.4]} 49. g5 {[%clk 0:00:05.7]} 49...
Qe6 {[%clk 0:00:06.9]} 50. Qc3+ {[%clk 0:00:04.8]} 50... Kd1 {[%clk 0:00:06.3]}
51. Qc2+ {[%clk 0:00:03.8]} 51... Ke1 {[%clk 0:00:06.4]} 52. Nd3# {[%clk
0:00:04.7]} 1-0

[Event "*** Titled Tuesday Blitz"]
[Site "Chess.com"]
[Date "2020.11.24"]
[Round "5"]
[White "ExtremeLearner"]
[Black "Taktikmonster"]
[Result "1-0"]
[WhiteElo "2387"]
[BlackElo "2137"]
[TimeControl "180+1"]
[EndTime "11:12:48 PST"]
[Termination "ExtremeLearner won on time"]

1. d4 {[%clk 0:03:00.9]} 1... Nf6 {[%clk 0:02:33]} 2. Nf3 {[%clk 0:03:01.8]}
2... e6 {[%clk 0:02:32.9]} 3. g3 {[%clk 0:02:59]} 3... b6 {[%clk 0:02:29.5]} 4.
Bg2 {[%clk 0:02:59.9]} 4... Bb7 {[%clk 0:02:28.5]} 5. O-O {[%clk 0:02:54]} 5...
Be7 {[%clk 0:02:28.8]} 6. c4 {[%clk 0:02:51]} 6... O-O {[%clk 0:02:29]} 7. Nc3
{[%clk 0:02:48]} 7... d6 {[%clk 0:02:26.9]} 8. Qc2 {[%clk 0:02:36.9]} 8... Nbd7
{[%clk 0:02:26.8]} 9. b3 {[%clk 0:02:19.7]} 9... c5 {[%clk 0:02:26.7]} 10. e3
{[%clk 0:02:07.4]} 10... a6 {[%clk 0:02:21.5]} 11. Bb2 {[%clk 0:02:01.9]} 11...
Qc7 {[%clk 0:02:21.5]} 12. Rac1 {[%clk 0:01:58.7]} 12... Rac8 {[%clk 0:02:21]}
13. Rfd1 {[%clk 0:01:51.3]} 13... Rfd8 {[%clk 0:02:21.4]} 14. d5 {[%clk
0:01:49.6]} 14... e5 {[%clk 0:02:09.8]} 15. Ng5 {[%clk 0:01:37.3]} 15... Nf8
{[%clk 0:02:04.4]} 16. h4 {[%clk 0:01:25.3]} 16... Rb8 {[%clk 0:02:03]} 17. Nce4
{[%clk 0:01:21.6]} 17... Bc8 {[%clk 0:01:58.4]} 18. Nxf6+ {[%clk 0:00:57.2]}
18... Bxf6 {[%clk 0:01:59.3]} 19. Be4 {[%clk 0:00:57.5]} 19... h6 {[%clk
0:01:57.7]} 20. Nh7 {[%clk 0:00:50.5]} 20... Nxh7 {[%clk 0:01:55]} 21. Bxh7+
{[%clk 0:00:51.4]} 21... Kh8 {[%clk 0:01:55.6]} 22. Bf5 {[%clk 0:00:51.2]} 22...
g6 {[%clk 0:01:51.8]} 23. Bxc8 {[%clk 0:00:49.3]} 23... Qxc8 {[%clk 0:01:52.7]}
24. Qe4 {[%clk 0:00:46.2]} 24... Qh3 {[%clk 0:01:47.9]} 25. Qg2 {[%clk
0:00:45.3]} 25... Qxg2+ {[%clk 0:01:45.9]} 26. Kxg2 {[%clk 0:00:46.2]} 26... Bg7
{[%clk 0:01:45.6]} 27. Bc3 {[%clk 0:00:44.2]} 27... b5 {[%clk 0:01:37.7]} 28.
Ba5 {[%clk 0:00:37.6]} 28... Rd7 {[%clk 0:01:35.1]} 29. e4 {[%clk 0:00:36.6]}
29... b4 {[%clk 0:01:29.8]} 30. Rf1 {[%clk 0:00:33.1]} 30... f5 {[%clk
0:01:22.9]} 31. f3 {[%clk 0:00:31.7]} 31... Rf8 {[%clk 0:01:07.6]} 32. Ra1
{[%clk 0:00:18.8]} 32... Rdf7 {[%clk 0:01:04.8]} 33. exf5 {[%clk 0:00:11.8]}
33... Rxf5 {[%clk 0:00:24.1]} 34. Rae1 {[%clk 0:00:09.2]} 34... Kg8 {[%clk
0:00:22.3]} 35. Re4 {[%clk 0:00:08]} 35... Kf7 {[%clk 0:00:21.7]} 36. Rf2 {[%clk
0:00:07.7]} 36... Ke7 {[%clk 0:00:22]} 37. Re3 {[%clk 0:00:05.4]} 37... Kd7
{[%clk 0:00:22.4]} 38. Kf1 {[%clk 0:00:05.8]} 38... h5 {[%clk 0:00:21.1]} 39.
Ke2 {[%clk 0:00:05.9]} 39... Bh6 {[%clk 0:00:21.4]} 40. Re4 {[%clk 0:00:06.1]}
40... Ra8 {[%clk 0:00:13.1]} 41. f4 {[%clk 0:00:06.3]} 41... exf4 {[%clk
0:00:11.5]} 42. gxf4 {[%clk 0:00:07.2]} 42... Re8 {[%clk 0:00:11.3]} 43. Rxe8
{[%clk 0:00:06.8]} 43... Kxe8 {[%clk 0:00:12.1]} 44. Ke3 {[%clk 0:00:06.7]}
44... Kd7 {[%clk 0:00:12.2]} 45. Ke4 {[%clk 0:00:06.7]} 45... Rf7 {[%clk
0:00:12]} 46. f5 {[%clk 0:00:05.2]} 46... Re7+ {[%clk 0:00:07]} 47. Kd3 {[%clk
0:00:05.7]} 47... Rf7 {[%clk 0:00:06.5]} 48. f6 {[%clk 0:00:05.3]} 48... Bc1
{[%clk 0:00:02.3]} 49. Kc2 {[%clk 0:00:05]} 49... Bh6 {[%clk 0:00:01.8]} 50. Rg2
{[%clk 0:00:05.3]} 50... Rxf6 {[%clk 0:00:01.6]} 51. Bb6 {[%clk 0:00:06.2]}
51... Rf5 {[%clk 0:00:01.5]} 52. Rxg6 {[%clk 0:00:07.1]} 52... Be3 {[%clk
0:00:01.2]} 53. Rg7+ {[%clk 0:00:07.3]} 1-0

[Event "*** Titled Tuesday Blitz"]
[Site "Chess.com"]
[Date "2020.11.24"]
[Round "5"]
[White "margarita_2703"]
[Black "Bathory44"]
[Result "0-1"]
[WhiteElo "2402"]
[BlackElo "2561"]
[TimeControl "180+1"]
[EndTime "11:12:51 PST"]
[Termination "Bathory44 won by resignation"]

1. Nf3 {[%clk 0:03:00.9]} 1... Nf6 {[%clk 0:02:59.4]} 2. d4 {[%clk 0:03:00.5]}
2... g6 {[%clk 0:02:58.1]} 3. c4 {[%clk 0:02:59.8]} 3... Bg7 {[%clk 0:02:58.6]}
4. Nc3 {[%clk 0:03:00.4]} 4... O-O {[%clk 0:02:58.7]} 5. e4 {[%clk 0:03:00.5]}
5... d6 {[%clk 0:02:59.3]} 6. Be2 {[%clk 0:03:01.2]} 6... e5 {[%clk 0:02:58.3]}
7. O-O {[%clk 0:03:01.8]} 7... Nc6 {[%clk 0:02:58.4]} 8. d5 {[%clk 0:03:01.9]}
8... Ne7 {[%clk 0:02:58.6]} 9. b4 {[%clk 0:03:02.4]} 9... a5 {[%clk 0:02:58.6]}
10. Ba3 {[%clk 0:03:01.5]} 10... axb4 {[%clk 0:02:55.3]} 11. Bxb4 {[%clk
0:03:01.1]} 11... b6 {[%clk 0:02:55.4]} 12. a4 {[%clk 0:02:57.5]} 12... Ne8
{[%clk 0:02:55.2]} 13. a5 {[%clk 0:02:56.4]} 13... c5 {[%clk 0:02:54.8]} 14.
dxc6 {[%clk 0:02:53.9]} 14... Nxc6 {[%clk 0:02:54.3]} 15. Ba3 {[%clk 0:02:29.2]}
15... bxa5 {[%clk 0:02:53.6]} 16. Nb5 {[%clk 0:02:26.6]} 16... Nd4 {[%clk
0:02:37.8]} 17. Nfxd4 {[%clk 0:02:23.4]} 17... exd4 {[%clk 0:02:38.3]} 18. Nxd4
{[%clk 0:02:19.7]} 18... Qb6 {[%clk 0:02:37.7]} 19. c5 {[%clk 0:02:09]} 19...
dxc5 {[%clk 0:02:34.5]} 20. Rb1 {[%clk 0:02:07]} 20... Qc7 {[%clk 0:02:21]} 21.
Nb5 {[%clk 0:02:04.6]} 21... Qe5 {[%clk 0:02:16.1]} 22. Rc1 {[%clk 0:02:00.3]}
22... Nf6 {[%clk 0:01:49.4]} 23. Rxc5 {[%clk 0:01:52.7]} 23... Qf4 {[%clk
0:01:47.3]} 24. Bf3 {[%clk 0:01:39]} 24... Bg4 {[%clk 0:01:40.2]} 25. e5 {[%clk
0:01:26.8]} 25... Bxf3 {[%clk 0:01:39.7]} 26. Qxf3 {[%clk 0:01:24.7]} 26... Qxf3
{[%clk 0:01:39.5]} 27. gxf3 {[%clk 0:01:24.6]} 27... Nh5 {[%clk 0:01:34.7]} 28.
e6 {[%clk 0:01:11]} 28... fxe6 {[%clk 0:01:32.5]} 29. Nc7 {[%clk 0:01:08.9]}
29... Rac8 {[%clk 0:01:24.3]} 30. Nxe6 {[%clk 0:01:06.6]} 30... Rxc5 {[%clk
0:01:25.2]} 31. Bxc5 {[%clk 0:01:03.4]} 31... Rf5 {[%clk 0:01:11.9]} 32. Be3
{[%clk 0:00:59.4]} 32... a4 {[%clk 0:01:02.7]} 33. Nxg7 {[%clk 0:00:52.2]} 33...
Nxg7 {[%clk 0:01:02.4]} 34. Ra1 {[%clk 0:00:50.9]} 34... Ra5 {[%clk 0:01:01]}
35. Kf1 {[%clk 0:00:46.3]} 35... Nf5 {[%clk 0:00:58]} 36. Ke2 {[%clk 0:00:43.7]}
36... Kf7 {[%clk 0:00:57]} 37. Kd3 {[%clk 0:00:41.3]} 37... Ke6 {[%clk
0:00:53.5]} 38. Bb6 {[%clk 0:00:36.9]} 38... Ra6 {[%clk 0:00:52.2]} 39. Be3
{[%clk 0:00:35.5]} 39... Kd5 {[%clk 0:00:51.9]} 40. Ra3 {[%clk 0:00:32.9]} 40...
Nd6 {[%clk 0:00:50.8]} 41. Kc2 {[%clk 0:00:26.9]} 41... Nc4 {[%clk 0:00:47.5]}
42. Ra1 {[%clk 0:00:24]} 42... Nxe3+ {[%clk 0:00:24.1]} 43. fxe3 {[%clk
0:00:23.4]} 43... Kc4 {[%clk 0:00:24.6]} 44. Kb2 {[%clk 0:00:20.9]} 44... Kd3
{[%clk 0:00:22.4]} 45. Ra3+ {[%clk 0:00:19.9]} 45... Ke2 {[%clk 0:00:21.9]} 46.
e4 {[%clk 0:00:20.1]} 46... g5 {[%clk 0:00:20]} 47. e5 {[%clk 0:00:19.8]} 47...
Re6 {[%clk 0:00:18.4]} 48. Rxa4 {[%clk 0:00:18.6]} 48... Rxe5 {[%clk 0:00:18.7]}
49. Ra7 {[%clk 0:00:17.3]} 49... h5 {[%clk 0:00:18.4]} 50. Rh7 {[%clk
0:00:16.7]} 50... h4 {[%clk 0:00:17.5]} 51. Rf7 {[%clk 0:00:15]} 51... Re3
{[%clk 0:00:14.4]} 52. Rf5 {[%clk 0:00:14.9]} 52... Rxf3 {[%clk 0:00:13]} 53.
Rxg5 {[%clk 0:00:15]} 53... Rf2 {[%clk 0:00:13.3]} 54. Rh5 {[%clk 0:00:13.8]}
54... Rxh2 {[%clk 0:00:13.2]} 55. Kc2 {[%clk 0:00:14.3]} 55... h3 {[%clk
0:00:13.7]} 56. Rh4 {[%clk 0:00:12.7]} 56... Rh1 {[%clk 0:00:13.6]} 57. Kc3
{[%clk 0:00:11.9]} 57... Kf3 {[%clk 0:00:13.5]} 58. Kd3 {[%clk 0:00:11.5]} 58...
h2 {[%clk 0:00:12.9]} 59. Kc2 {[%clk 0:00:10.1]} 59... Ra1 {[%clk 0:00:12.3]}
60. Kb2 {[%clk 0:00:10]} 60... h1=Q {[%clk 0:00:11.7]} 0-1